[Event "Hungarian Rapid-ch 2022"]
[Site "Ajka"]
[Date "2022.07.17"]
[Round "12.1"]
[White "Gledura, Benjamin"]
[Black "Prohaszka, Peter"]
[Result "1-0"]
[ECO "E10"]
[WhiteElo "2637"]
[BlackElo "2570"]
[Annotator "ChessBase"]
[PlyCount "137"]
[EventDate "2022.07.15"]
[EventType "swiss"]
[EventCountry "HUN"]
[SourceTitle "playchess.com"]
[Source "ChessBase"]
[SourceQuality "1"]
[TimeControl "900+10"]

1. d4 {[%emt 0:00:14]} Nf6 {[%emt 0:00:33]} 2. c4 {[%emt 0:00:05]} e6 {[%emt 0:00:02]} 3. Nf3 {[%emt 0:00:31]} d5 {[%emt 0:00:26]} 4. cxd5 {[%emt 0:00:21]} exd5 {[%emt 0:00:02]} 5. Qc2 {[%emt 0:00:03]} c6 {[%emt 0:00:24]} 6. Nc3 {[%emt 0:00:17]} g6 {[%emt 0:00:44]} 7. Bg5 {[%emt 0:00:08]} Be7 {[%emt 0:00:52]} 8. e3 {[%emt 0:00:04]} Bf5 {[%emt 0:00:17]} 9. Bd3 {[%emt 0:00:03]} Bxd3 {[%emt 0:00:16]} 10. Qxd3 {[%emt 0:00:02]} Nbd7 {[%emt 0:00:51]} 11. Bh6 {[%emt 0:00:23]} Bf8 {[%emt 0:00:32]} 12. Bf4 {[%emt 0:00:46]} Nh5 {[%emt 0:00:16]} 13. Bg5 {[%emt 0:00:50]} Be7 {[%emt 0:00:08]} 14. Bh6 {[%emt 0:00:26]} Bf8 {[%emt 0:00:18]} 15. Bxf8 {[%emt 0:00:12]} Kxf8 {[%emt 0:00:06]} 16. O-O {[%emt 0:00:21]} Kg7 {[%emt 0:01:22]} 17. b4 {[%emt 0:00:33]} Re8 {[%emt 0:01:12]} 18. b5 {[%emt 0:00:19]} Nhf6 {[%emt 0:00:02]} 19. bxc6 {[%emt 0:00:21]} bxc6 {[%emt 0:00:01]} 20. Rfc1 {[%emt 0:00:37]} Qa5 {[%emt 0:00:14]} 21. Ne2 {[%emt 0:01:19]} Rac8 {[%emt 0:00:21]} 22. Nd2 {[%emt 0:00:21]} Qb5 {[%emt 0:00:34]} 23. Nf4 {[%emt 0:00:30]} Ne4 {[%emt 0:01:47]} 24. Nxe4 {[%emt 0:01:17]} dxe4 {[%emt 0:00:14]} 25. Qa3 {[%emt 0:00:39]} Nf6 {[%emt 0:04:13]} 26. Qxa7 {[%emt 0:01:11]} Ra8 {[%emt 0:00:41]} 27. Qc5 {[%emt 0:00:08]} g5 {[%emt 0:02:32]} 28. Ne2 {[%emt 0:00:49]} h6 {[%emt 0:00:14]} 29. Ng3 {[%emt 0:00:24]} Qxc5 {[%emt 0:00:10]} 30. Rxc5 {[%emt 0:00:02]} Reb8 {[%emt 0:00:08]} 31. h3 {[%emt 0:00:53]} Ra6 {[%emt 0:00:13]} 32. Nf5+ {[%emt 0:00:24]} Kh7 {[%emt 0:00:01]} 33. Rac1 {[%emt 0:00:52]} Rb5 {[%emt 0:00:02]} 34. Ne7 {[%emt 0:00:47]} Rxa2 {[%emt 0:00:41]} 35. Rxc6 {[%emt 0:00:16]} Nd5 {[%emt 0:00:01]} 36. Nf5 {[%emt 0:00:42]} f6 {[%emt 0:00:01]} 37. R6c5 {[%emt 0:00:26]} Rxc5 {[%emt 0:00:33]} 38. Rxc5 {[%emt 0:00:03]} Nb4 {[%emt 0:00:11]} 39. Rc7+ {[%emt 0:00:06]} Kh8 {[%emt 0:00:00]} 40. Ng3 {[%emt 0:02:14]} Ra1+ {[%emt 0:00:23]} 41. Kh2 {[%emt 0:00:02]} f5 {[%emt 0:00:10]} 42. Nxf5 {[%emt 0:00:07]} Rf1 {[%emt 0:00:11]} 43. Kg3 {[%emt 0:00:04]} Nd3 {[%emt 0:00:01]} 44. Kg4 {[%emt 0:01:36]} Rxf2 {[%emt 0:00:12]} 45. Nxh6 {[%emt 0:00:08]} Rxg2+ {[%emt 0:00:07]} 46. Kh5 {[%emt 0:00:02]} Nf4+ {[%emt 0:00:01]} 47. exf4 {[%emt 0:00:13]} gxf4 {[%emt 0:00:01]} 48. Ng4 {[%emt 0:00:33]} Kg8 {[%emt 0:00:37]} 49. Nf6+ {[%emt 0:00:01]} Kf8 {[%emt 0:00:00]} 50. Nxe4 {[%emt 0:00:01]} f3 {[%emt 0:00:02]} 51. Rc5 {[%emt 0:00:09]} Re2 {[%emt 0:00:18]} 52. Rf5+ {[%emt 0:00:02]} Kg7 {[%emt 0:00:06]} 53. Ng3 {[%emt 0:00:11]} Re3 {[%emt 0:00:08]} 54. Kg4 {[%emt 0:00:10]} Rd3 {[%emt 0:00:01]} 55. Rf4 {[%emt 0:00:17]} f2 {[%emt 0:00:05]} 56. Nf5+ {[%emt 0:00:05]} Kg6 {[%emt 0:00:18]} 57. Rxf2 {[%emt 0:00:04]} Rd1 {[%emt 0:00:01]} 58. Nh4+ {[%emt 0:00:13]} Kh6 {[%emt 0:00:01]} 59. Nf3 {[%emt 0:00:04]} Kg6 {[%emt 0:00:05]} 60. Rd2 {[%emt 0:00:03]} Ra1 {[%emt 0:00:01]} 61. d5 {[%emt 0:00:03]} Kf6 {[%emt 0:00:22]} 62. d6 {[%emt 0:00:02]} Ra4+ {[%emt 0:00:03]} 63. Rd4 {[%emt 0:00:03]} Ra8 {[%emt 0:00:01]} 64. d7 {[%emt 0:00:02]} Rd8 {[%emt 0:00:06]} 65. Kf4 {[%emt 0:00:04]} Ke6 {[%emt 0:00:37]} 66. Ne5 {[%emt 0:00:04]} Rh8 {[%emt 0:00:39]} 67. Nf7 {[%emt 0:01:14]} Rh4+ {[%emt 0:00:14]} 68. Kg5 {[%emt 0:00:12]} Rxd4 {[%emt 0:00:13]} 69. d8=Q {[%emt 0:00:04]} 1-0

[Event "Hungarian Rapid-ch 2022"]
[Site "Ajka"]
[Date "2022.07.17"]
[Round "12.2"]
[White "Balog, Imre"]
[Black "Kozak, Adam"]
[Result "1/2-1/2"]
[ECO "D02"]
[WhiteElo "2594"]
[BlackElo "2522"]
[Annotator "ChessBase"]
[PlyCount "95"]
[EventDate "2022.07.15"]
[EventType "swiss"]
[EventCountry "HUN"]
[SourceTitle "playchess.com"]
[Source "ChessBase"]
[SourceQuality "1"]
[TimeControl "900+10"]

1. d4 {[%emt 0:00:13]} Nf6 {[%emt 0:00:12]} 2. Nf3 {[%emt 0:00:02]} d5 {[%emt 0:00:04]} 3. Bf4 {[%emt 0:00:14]} e6 {[%emt 0:00:12]} 4. e3 {[%emt 0:00:10]} Bd6 {[%emt 0:00:15]} 5. Ne5 {[%emt 0:00:22]} O-O {[%emt 0:00:26]} 6. Nd2 {[%emt 0:00:17]} c5 {[%emt 0:00:12]} 7. c3 {[%emt 0:01:17]} Qc7 {[%emt 0:00:10]} 8. Bd3 {[%emt 0:00:43]} Nbd7 {[%emt 0:02:12]} 9. Ndf3 {[%emt 0:00:19]} h6 {[%emt 0:01:52]} 10. h3 {[%emt 0:00:40]} Ne4 {[%emt 0:03:05]} 11. O-O {[%emt 0:00:52]} Rd8 {[%emt 0:01:19]} 12. Qc2 {[%emt 0:01:40]} f5 {[%emt 0:02:42]} 13. Nxd7 {[%emt 0:00:29]} Bxd7 {[%emt 0:00:03]} 14. Bxe4 {[%emt 0:00:58]} fxe4 {[%emt 0:00:29]} 15. Bxd6 {[%emt 0:00:02]} Qxd6 {[%emt 0:00:01]} 16. Ne5 {[%emt 0:00:01]} Bb5 {[%emt 0:00:12]} 17. Rfe1 {[%emt 0:00:02]} Rac8 {[%emt 0:00:07]} 18. Qd1 {[%emt 0:02:20]} Rf8 {[%emt 0:00:29]} 19. a4 {[%emt 0:03:13]} Ba6 {[%emt 0:00:35]} 20. Qg4 {[%emt 0:00:01]} Rf5 {[%emt 0:00:15]} 21. Rad1 {[%emt 0:01:14]} Rg5 {[%emt 0:00:52]} 22. Qh4 {[%emt 0:00:08]} Rf8 {[%emt 0:00:38]} 23. Rd2 {[%emt 0:00:02]} b6 {[%emt 0:00:42]} 24. Kh1 {[%emt 0:00:04]} Qd8 {[%emt 0:00:29]} 25. b4 {[%emt 0:00:21]} Qe8 {[%emt 0:00:26]} 26. b5 {[%emt 0:00:22]} Bb7 {[%emt 0:00:23]} 27. f4 {[%emt 0:00:03]} exf3 {[%emt 0:00:07]} 28. Nxf3 {[%emt 0:00:19]} Rgf5 {[%emt 0:00:17]} 29. Rf2 {[%emt 0:00:31]} e5 {[%emt 0:00:46]} 30. dxe5 {[%emt 0:00:15]} Qe6 {[%emt 0:00:01]} 31. Kg1 {[%emt 0:00:29]} a6 {[%emt 0:00:27]} 32. bxa6 {[%emt 0:00:06]} Bxa6 {[%emt 0:00:01]} 33. e4 {[%emt 0:00:27]} dxe4 {[%emt 0:00:17]} 34. Qxe4 {[%emt 0:00:01]} Bc4 {[%emt 0:00:19]} 35. Rd1 {[%emt 0:00:16]} Rf4 {[%emt 0:00:10]} 36. Qb7 {[%emt 0:00:57]} R4f7 {[%emt 0:00:01]} 37. Qe4 {[%emt 0:00:12]} Rf4 {[%emt 0:00:01]} 38. Qe3 {[%emt 0:00:01]} Bd5 {[%emt 0:00:07]} 39. Rdf1 {[%emt 0:00:01]} Bc4 {[%emt 0:00:12]} 40. Nd2 {[%emt 0:00:14]} Rxf2 {[%emt 0:00:07]} 41. Rxf2 {[%emt 0:00:01]} Rxf2 {[%emt 0:00:07]} 42. Kxf2 {[%emt 0:00:05]} Bd5 {[%emt 0:00:01]} 43. Kg1 {[%emt 0:00:52]} Qg6 {[%emt 0:00:16]} 44. Nf3 {[%emt 0:00:01]} Qg3 {[%emt 0:00:17]} 45. Qe1 {[%emt 0:00:58]} Qxe1+ {[%emt 0:00:07]} 46. Nxe1 {[%emt 0:00:00]} Kf7 {[%emt 0:00:01]} 47. Nd3 {[%emt 0:00:04]} Ke6 {[%emt 0:00:04]} 48. Kf2 {[%emt 0:00:04]} 1/2-1/2

[Event "Hungarian Rapid-ch 2022"]
[Site "Ajka"]
[Date "2022.07.17"]
[Round "12.3"]
[White "Lizak, Peter"]
[Black "Berkes, Ferenc"]
[Result "1/2-1/2"]
[ECO "A45"]
[WhiteElo "2400"]
[BlackElo "2649"]
[Annotator "ChessBase"]
[PlyCount "47"]
[EventDate "2022.07.15"]
[EventType "swiss"]
[EventCountry "HUN"]
[SourceTitle "playchess.com"]
[Source "ChessBase"]
[SourceQuality "1"]
[TimeControl "900+10"]

1. d4 {[%emt 0:00:12]} Nf6 {[%emt 0:00:13]} 2. Nc3 {[%emt 0:00:02]} d6 {[%emt 0:00:03]} 3. e4 {[%emt 0:00:02]} e5 {[%emt 0:00:01]} 4. dxe5 {[%emt 0:00:02]} dxe5 {[%emt 0:00:01]} 5. Qxd8+ {[%emt 0:00:04]} Kxd8 {[%emt 0:00:02]} 6. Bc4 {[%emt 0:00:03]} Ke8 {[%emt 0:00:08]} 7. Nf3 {[%emt 0:00:20]} Bd6 {[%emt 0:00:23]} 8. Bg5 {[%emt 0:00:39]} Nbd7 {[%emt 0:00:10]} 9. O-O-O {[%emt 0:00:06]} a6 {[%emt 0:00:11]} 10. Bb3 {[%emt 0:00:20]} h6 {[%emt 0:00:47]} 11. Bh4 {[%emt 0:00:10]} g5 {[%emt 0:02:34]} 12. Bg3 {[%emt 0:00:02]} Nh5 {[%emt 0:00:02]} 13. Nd2 {[%emt 0:03:46]} b5 {[%emt 0:02:53]} 14. Nf1 {[%emt 0:00:20]} Rb8 {[%emt 0:01:11]} 15. Ne3 {[%emt 0:01:27]} Ndf6 {[%emt 0:00:10]} 16. f3 {[%emt 0:00:41]} Nxg3 {[%emt 0:02:05]} 17. hxg3 {[%emt 0:00:02]} Kf8 {[%emt 0:00:04]} 18. g4 {[%emt 0:00:23]} Kg7 {[%emt 0:00:09]} 19. Ne2 {[%emt 0:02:04]} Bc5 {[%emt 0:01:08]} 20. Nd5 {[%emt 0:00:15]} c6 {[%emt 0:01:18]} 21. Nxf6 {[%emt 0:00:17]} Kxf6 {[%emt 0:00:02]} 22. Ng3 {[%emt 0:00:14]} Rb7 {[%emt 0:00:48]} 23. Rd3 {[%emt 0:00:21]} Rc7 {[%emt 0:01:01]} 24. Rhd1 {[%emt 0:00:16]} 1/2-1/2

[Event "Hungarian Rapid-ch 2022"]
[Site "Ajka"]
[Date "2022.07.17"]
[Round "12.4"]
[White "Aczel, Gergely"]
[Black "Kantor, Gergely"]
[Result "1-0"]
[ECO "A50"]
[WhiteElo "2499"]
[BlackElo "2582"]
[Annotator "ChessBase"]
[PlyCount "95"]
[EventDate "2022.07.15"]
[EventType "swiss"]
[EventCountry "HUN"]
[SourceTitle "playchess.com"]
[Source "ChessBase"]
[SourceQuality "1"]
[TimeControl "900+10"]

1. d4 {[%emt 0:00:12]} Nf6 {[%emt 0:00:11]} 2. c4 {[%emt 0:00:00]} g6 {[%emt 0:00:01]} 3. f3 {[%emt 0:00:01]} e6 {[%emt 0:00:12]} 4. e4 {[%emt 0:00:04]} c5 {[%emt 0:00:01]} 5. d5 {[%emt 0:00:01]} d6 {[%emt 0:00:05]} 6. Nc3 {[%emt 0:00:02]} exd5 {[%emt 0:00:08]} 7. cxd5 {[%emt 0:00:02]} Bg7 {[%emt 0:00:01]} 8. Bg5 {[%emt 0:00:01]} h6 {[%emt 0:00:16]} 9. Be3 {[%emt 0:00:01]} O-O {[%emt 0:00:03]} 10. Qd2 {[%emt 0:00:02]} Re8 {[%emt 0:00:19]} 11. Be2 {[%emt 0:00:01]} Kh7 {[%emt 0:00:33]} 12. Rc1 {[%emt 0:00:17]} Na6 {[%emt 0:00:14]} 13. Bd1 {[%emt 0:00:04]} Nc7 {[%emt 0:00:10]} 14. a4 {[%emt 0:00:07]} a6 {[%emt 0:01:46]} 15. Nge2 {[%emt 0:00:03]} b5 {[%emt 0:00:07]} 16. Bc2 {[%emt 0:00:01]} Qe7 {[%emt 0:00:12]} 17. O-O {[%emt 0:00:29]} Nd7 {[%emt 0:00:46]} 18. b3 {[%emt 0:01:47]} Rb8 {[%emt 0:00:26]} 19. Rfe1 {[%emt 0:00:47]} Ne5 {[%emt 0:00:18]} 20. Bf2 {[%emt 0:01:54]} b4 {[%emt 0:00:31]} 21. Nd1 {[%emt 0:00:30]} a5 {[%emt 0:00:26]} 22. Ne3 {[%emt 0:00:54]} h5 {[%emt 0:00:39]} 23. Kh1 {[%emt 0:01:32]} Bh6 {[%emt 0:00:21]} 24. f4 {[%emt 0:00:58]} Ng4 {[%emt 0:00:32]} 25. Nxg4 {[%emt 0:00:10]} Bxg4 {[%emt 0:00:20]} 26. h3 {[%emt 0:00:32]} Bd7 {[%emt 0:01:02]} 27. Qd3 {[%emt 0:00:46]} Bc8 {[%emt 0:01:49]} 28. Qf3 {[%emt 0:00:13]} Ba6 {[%emt 0:00:03]} 29. e5 {[%emt 0:01:46]} dxe5 {[%emt 0:01:46]} 30. Bxc5 {[%emt 0:00:02]} e4 {[%emt 0:00:03]} 31. Qf2 {[%emt 0:01:27]} Qd7 {[%emt 0:01:13]} 32. Rcd1 {[%emt 0:00:38]} Rbc8 {[%emt 0:01:16]} 33. f5 {[%emt 0:00:35]} Nxd5 {[%emt 0:01:39]} 34. fxg6+ {[%emt 0:00:02]} fxg6 {[%emt 0:00:01]} 35. Ng3 {[%emt 0:00:20]} Bf8 {[%emt 0:03:14]} 36. Nxe4 {[%emt 0:00:52]} Qf5 {[%emt 0:00:06]} 37. Rxd5 {[%emt 0:01:09]} Bxc5 38. Rxf5 {[%emt 0:00:35]} Bxf2 {[%emt 0:00:05]} 39. Rxf2 {[%emt 0:00:02]} Kg7 {[%emt 0:00:08]} 40. Bb1 {[%emt 0:00:37]} Rc7 {[%emt 0:00:02]} 41. Rd1 {[%emt 0:00:25]} Rce7 {[%emt 0:00:17]} 42. Rd4 {[%emt 0:00:42]} Rc8 {[%emt 0:00:17]} 43. Rc2 {[%emt 0:01:04]} Rf8 {[%emt 0:00:01]} 44. Rc1 {[%emt 0:00:04]} Ref7 {[%emt 0:00:07]} 45. Bd3 {[%emt 0:00:14]} Bc8 {[%emt 0:00:14]} 46. Nd6 {[%emt 0:00:04]} Rd7 {[%emt 0:00:03]} 47. Bb5 {[%emt 0:00:06]} Rdd8 {[%emt 0:00:08]} 48. Rxc8 {[%emt 0:00:02]} 1-0

[Event "Hungarian Rapid-ch 2022"]
[Site "Ajka"]
[Date "2022.07.17"]
[Round "12.5"]
[White "Horvath, Adam"]
[Black "Mihok, Oliver"]
[Result "1-0"]
[ECO "B47"]
[WhiteElo "2520"]
[BlackElo "2549"]
[Annotator "ChessBase"]
[PlyCount "163"]
[EventDate "2022.07.15"]
[EventType "swiss"]
[EventCountry "HUN"]
[SourceTitle "playchess.com"]
[Source "ChessBase"]
[SourceQuality "1"]
[TimeControl "900+10"]

1. e4 {[%emt 0:00:12]} c5 {[%emt 0:00:11]} 2. Nf3 {[%emt 0:00:02]} e6 {[%emt 0:00:01]} 3. d4 {[%emt 0:00:02]} cxd4 {[%emt 0:00:01]} 4. Nxd4 {[%emt 0:00:01]} Nc6 {[%emt 0:00:01]} 5. Nc3 {[%emt 0:00:05]} Qc7 {[%emt 0:00:01]} 6. f4 {[%emt 0:00:06]} Nxd4 {[%emt 0:00:45]} 7. Qxd4 {[%emt 0:00:02]} b6 {[%emt 0:00:13]} 8. Bd3 {[%emt 0:00:20]} Bb7 {[%emt 0:00:28]} 9. Qf2 {[%emt 0:01:23]} Nf6 {[%emt 0:01:44]} 10. Bd2 {[%emt 0:00:14]} Bc5 {[%emt 0:02:42]} 11. Qe2 {[%emt 0:00:09]} O-O {[%emt 0:00:23]} 12. O-O-O {[%emt 0:00:22]} d5 {[%emt 0:01:08]} 13. e5 {[%emt 0:00:26]} Nd7 {[%emt 0:00:09]} 14. h4 {[%emt 0:00:30]} Rfc8 {[%emt 0:00:24]} 15. h5 {[%emt 0:00:42]} Bf8 {[%emt 0:00:20]} 16. Kb1 {[%emt 0:03:12]} a6 {[%emt 0:00:31]} 17. Be3 {[%emt 0:02:33]} b5 {[%emt 0:00:42]} 18. Qf2 {[%emt 0:00:19]} Nc5 {[%emt 0:00:31]} 19. a3 {[%emt 0:01:59]} Ne4 {[%emt 0:01:23]} 20. Bxe4 {[%emt 0:01:46]} dxe4 {[%emt 0:00:02]} 21. Bd4 {[%emt 0:00:01]} Qc4 {[%emt 0:01:35]} 22. Rhe1 {[%emt 0:01:58]} a5 {[%emt 0:00:47]} 23. b3 {[%emt 0:01:21]} Qc6 {[%emt 0:00:35]} 24. Nxe4 {[%emt 0:00:01]} Bxa3 {[%emt 0:00:34]} 25. h6 {[%emt 0:00:43]} g6 {[%emt 0:00:58]} 26. Bc5 {[%emt 0:00:25]} Bxc5 {[%emt 0:00:56]} 27. Nxc5 {[%emt 0:00:02]} Rc7 {[%emt 0:00:37]} 28. Qh4 {[%emt 0:00:13]} Qe8 {[%emt 0:01:19]} 29. Qf6 {[%emt 0:00:37]} Qf8 {[%emt 0:00:03]} 30. Nxb7 {[%emt 0:00:06]} Rxb7 {[%emt 0:00:01]} 31. Rd6 {[%emt 0:00:08]} Qxh6 {[%emt 0:00:15]} 32. Red1 {[%emt 0:00:08]} Rbb8 {[%emt 0:00:05]} 33. g4 {[%emt 0:00:20]} Qg7 {[%emt 0:00:15]} 34. Rd8+ {[%emt 0:00:02]} Rxd8 {[%emt 0:00:02]} 35. Rxd8+ {[%emt 0:00:00]} Rxd8 {[%emt 0:00:02]} 36. Qxd8+ {[%emt 0:00:01]} Qf8 {[%emt 0:00:02]} 37. Qxa5 {[%emt 0:00:01]} b4 {[%emt 0:00:18]} 38. g5 {[%emt 0:00:07]} h5 {[%emt 0:00:21]} 39. gxh6 {[%emt 0:00:02]} Kh7 {[%emt 0:00:00]} 40. c3 {[%emt 0:00:12]} bxc3 {[%emt 0:00:10]} 41. Qxc3 {[%emt 0:00:02]} Qxh6 {[%emt 0:00:05]} 42. Qg3 {[%emt 0:00:21]} Qh5 {[%emt 0:00:26]} 43. Kb2 {[%emt 0:00:13]} Qd1 {[%emt 0:00:12]} 44. b4 {[%emt 0:00:14]} Qd2+ {[%emt 0:00:16]} 45. Kb3 {[%emt 0:00:02]} Qd5+ {[%emt 0:00:06]} 46. Ka3 {[%emt 0:00:06]} Qa8+ {[%emt 0:00:26]} 47. Kb2 {[%emt 0:00:05]} Qe4 {[%emt 0:00:07]} 48. Kc3 {[%emt 0:00:11]} Qc6+ {[%emt 0:00:11]} 49. Kb2 {[%emt 0:00:21]} Qe4 {[%emt 0:00:02]} 50. Qh2+ {[%emt 0:00:19]} Kg7 {[%emt 0:00:02]} 51. Qd2 {[%emt 0:00:05]} Qc4 {[%emt 0:00:21]} 52. Ka3 {[%emt 0:00:12]} Kh7 {[%emt 0:00:28]} 53. Ka4 {[%emt 0:00:04]} Qa6+ {[%emt 0:00:15]} 54. Kb3 {[%emt 0:00:01]} Qc6 {[%emt 0:00:04]} 55. Qd3 {[%emt 0:00:16]} Kg7 {[%emt 0:00:23]} 56. b5 {[%emt 0:00:24]} Qc5 {[%emt 0:00:02]} 57. Qc4 {[%emt 0:00:02]} Qe3+ {[%emt 0:00:13]} 58. Ka4 {[%emt 0:00:01]} Qa7+ {[%emt 0:00:14]} 59. Kb4 {[%emt 0:00:04]} Qe3 {[%emt 0:00:04]} 60. Ka4 {[%emt 0:00:37]} Qa7+ {[%emt 0:00:03]} 61. Kb3 {[%emt 0:00:09]} Qe3+ 62. Kb2 {[%emt 0:00:08]} Qd2+ {[%emt 0:00:16]} 63. Ka3 {[%emt 0:00:05]} Qe3+ {[%emt 0:00:05]} 64. Kb4 {[%emt 0:00:18]} Kh6 {[%emt 0:00:05]} 65. Ka4 {[%emt 0:00:21]} Qa7+ {[%emt 0:00:02]} 66. Kb3 {[%emt 0:00:03]} Qe3+ {[%emt 0:00:01]} 67. Qc3 {[%emt 0:00:27]} Qxf4 {[%emt 0:00:15]} 68. b6 {[%emt 0:00:04]} Qe4 {[%emt 0:00:20]} 69. Qc7 {[%emt 0:00:09]} Qb1+ {[%emt 0:00:37]} 70. Ka4 {[%emt 0:00:07]} Qa2+ {[%emt 0:00:03]} 71. Kb5 {[%emt 0:00:01]} Qb3+ {[%emt 0:00:05]} 72. Ka6 {[%emt 0:00:04]} Qa4+ {[%emt 0:00:14]} 73. Kb7 {[%emt 0:00:02]} Kg7 {[%emt 0:00:11]} 74. Qc6 {[%emt 0:00:20]} Qd4 {[%emt 0:00:10]} 75. Kc8 {[%emt 0:00:04]} Qb4 {[%emt 0:00:28]} 76. b7 Qf8+ {[%emt 0:00:01]} 77. Kd7 {[%emt 0:00:34]} Qb8 {[%emt 0:00:19]} 78. Qc7 {[%emt 0:00:07]} Qa7 {[%emt 0:00:06]} 79. b8=Q {[%emt 0:00:06]} Qd4+ {[%emt 0:00:01]} 80. Qd6 {[%emt 0:00:11]} Qa4+ {[%emt 0:00:02]} 81. Kc8 {[%emt 0:00:15]} Qe8+ {[%emt 0:00:03]} 82. Kc7 {[%emt 0:00:03]} 1-0

[Event "Hungarian Rapid-ch 2022"]
[Site "Ajka"]
[Date "2022.07.17"]
[Round "12.6"]
[White "Csonka, Balazs"]
[Black "Horvath, Csaba"]
[Result "1/2-1/2"]
[ECO "C02"]
[WhiteElo "2495"]
[BlackElo "2506"]
[Annotator "ChessBase"]
[PlyCount "26"]
[EventDate "2022.07.15"]
[EventType "swiss"]
[EventCountry "HUN"]
[SourceTitle "playchess.com"]
[Source "ChessBase"]
[SourceQuality "1"]
[TimeControl "900+10"]

1. e4 {[%emt 0:00:12]} e6 {[%emt 0:00:11]} 2. d4 {[%emt 0:00:06]} d5 {[%emt 0:00:01]} 3. e5 {[%emt 0:00:08]} c5 {[%emt 0:00:02]} 4. c3 {[%emt 0:00:02]} Qb6 {[%emt 0:00:10]} 5. Nf3 {[%emt 0:00:05]} Bd7 {[%emt 0:00:03]} 6. Be2 {[%emt 0:00:48]} cxd4 {[%emt 0:00:11]} 7. cxd4 {[%emt 0:00:03]} Bb5 {[%emt 0:00:02]} 8. Nc3 {[%emt 0:00:03]} Bxe2 {[%emt 0:00:04]} 9. Nxe2 {[%emt 0:00:02]} Nc6 {[%emt 0:00:26]} 10. O-O {[%emt 0:01:36]} Nge7 {[%emt 0:00:05]} 11. Ng3 {[%emt 0:00:47]} h5 {[%emt 0:02:05]} 12. Bg5 {[%emt 0:01:38]} h4 {[%emt 0:01:56]} 13. Ne2 {[%emt 0:03:41]} Nf5 {[%emt 0:00:07]} 1/2-1/2

[Event "Hungarian Rapid-ch 2022"]
[Site "Ajka"]
[Date "2022.07.17"]
[Round "12.7"]
[White "Antal, Gergely"]
[Black "Tolnai, Tibor"]
[Result "1/2-1/2"]
[ECO "B43"]
[WhiteElo "2571"]
[BlackElo "2433"]
[Annotator "ChessBase"]
[PlyCount "140"]
[EventDate "2022.07.15"]
[EventType "swiss"]
[EventCountry "HUN"]
[SourceTitle "playchess.com"]
[Source "ChessBase"]
[SourceQuality "1"]
[TimeControl "900+10"]

1. e4 {[%emt 0:00:12]} c5 {[%emt 0:00:16]} 2. Nf3 {[%emt 0:00:02]} e6 {[%emt 0:00:12]} 3. d4 {[%emt 0:00:03]} cxd4 {[%emt 0:00:02]} 4. Nxd4 {[%emt 0:00:01]} a6 {[%emt 0:00:01]} 5. Nc3 {[%emt 0:00:05]} b5 {[%emt 0:00:07]} 6. Bd3 {[%emt 0:00:14]} Bb7 {[%emt 0:00:02]} 7. O-O {[%emt 0:00:03]} Ne7 {[%emt 0:00:02]} 8. Be3 {[%emt 0:01:00]} Nbc6 {[%emt 0:00:02]} 9. Nb3 {[%emt 0:00:01]} Ng6 {[%emt 0:00:07]} 10. f4 {[%emt 0:00:11]} Be7 {[%emt 0:00:10]} 11. Kh1 {[%emt 0:00:10]} O-O {[%emt 0:00:08]} 12. Qd2 {[%emt 0:00:37]} d6 {[%emt 0:01:53]} 13. Rad1 {[%emt 0:00:02]} Rc8 {[%emt 0:00:40]} 14. Qe2 {[%emt 0:00:21]} Nb4 {[%emt 0:00:26]} 15. a3 {[%emt 0:01:08]} Nxd3 {[%emt 0:00:03]} 16. cxd3 {[%emt 0:00:02]} Bf6 {[%emt 0:01:43]} 17. Rc1 {[%emt 0:01:12]} Re8 {[%emt 0:00:46]} 18. Qf2 {[%emt 0:00:59]} Bh4 {[%emt 0:00:44]} 19. Qd2 {[%emt 0:00:35]} Bf6 {[%emt 0:00:13]} 20. Ne2 {[%emt 0:00:22]} Ne7 {[%emt 0:00:56]} 21. Na5 {[%emt 0:02:20]} Ba8 {[%emt 0:00:30]} 22. b4 {[%emt 0:00:01]} Qd7 {[%emt 0:00:19]} 23. Bd4 {[%emt 0:01:45]} e5 {[%emt 0:01:41]} 24. Bb2 {[%emt 0:00:28]} Ng6 {[%emt 0:01:06]} 25. fxe5 {[%emt 0:00:58]} Bxe5 {[%emt 0:01:00]} 26. Rxc8 {[%emt 0:00:26]} Rxc8 {[%emt 0:00:29]} 27. d4 {[%emt 0:01:04]} Bf6 {[%emt 0:01:01]} 28. Ng3 {[%emt 0:00:59]} Bh4 {[%emt 0:01:27]} 29. d5 {[%emt 0:00:25]} Bxg3 {[%emt 0:00:03]} 30. hxg3 {[%emt 0:00:02]} Qe7 {[%emt 0:00:52]} 31. Rc1 {[%emt 0:01:45]} Re8 {[%emt 0:00:10]} 32. Qd4 {[%emt 0:00:41]} Ne5 {[%emt 0:00:52]} 33. Nc6 {[%emt 0:00:30]} Bxc6 {[%emt 0:00:02]} 34. dxc6 {[%emt 0:00:02]} Rc8 {[%emt 0:00:11]} 35. Qd5 {[%emt 0:01:23]} Nc4 {[%emt 0:00:26]} 36. Bd4 {[%emt 0:00:31]} h6 {[%emt 0:00:53]} 37. a4 {[%emt 0:00:01]} Qg5 {[%emt 0:00:39]} 38. Rf1 {[%emt 0:00:05]} Rc7 {[%emt 0:00:15]} 39. axb5 {[%emt 0:00:02]} axb5 {[%emt 0:00:01]} 40. Qxg5 {[%emt 0:00:37]} hxg5 {[%emt 0:00:01]} 41. Rf5 {[%emt 0:00:01]} Rxc6 {[%emt 0:00:43]} 42. Rxg5 {[%emt 0:00:09]} Ne5 {[%emt 0:00:10]} 43. Bxe5 {[%emt 0:00:03]} dxe5 {[%emt 0:00:01]} 44. Rxe5 {[%emt 0:00:01]} Rc4 {[%emt 0:00:00]} 45. Rxb5 {[%emt 0:00:02]} Rxe4 {[%emt 0:00:02]} 46. Kg1 {[%emt 0:00:13]} Re2 {[%emt 0:00:02]} 47. g4 {[%emt 0:00:16]} Rb2 {[%emt 0:00:03]} 48. Kh2 {[%emt 0:00:02]} Rb3 {[%emt 0:00:07]} 49. g5 {[%emt 0:00:02]} Kh7 {[%emt 0:00:17]} 50. Rb6 {[%emt 0:00:01]} Rd3 {[%emt 0:00:08]} 51. Rc6 {[%emt 0:00:18]} Rb3 {[%emt 0:00:07]} 52. Rb6 {[%emt 0:00:32]} Rd3 {[%emt 0:00:02]} 53. g3 {[%emt 0:00:04]} Rd5 {[%emt 0:00:15]} 54. g6+ {[%emt 0:00:02]} fxg6 {[%emt 0:00:01]} 55. Rc6 {[%emt 0:00:08]} Rd4 {[%emt 0:00:17]} 56. b5 {[%emt 0:00:01]} Rb4 {[%emt 0:00:01]} 57. Rc5 {[%emt 0:00:23]} Kh6 {[%emt 0:00:08]} 58. Kh3 {[%emt 0:00:22]} g5 {[%emt 0:00:13]} 59. g4 {[%emt 0:00:04]} g6 {[%emt 0:00:07]} 60. Kg3 {[%emt 0:00:03]} Rb3+ {[%emt 0:00:14]} 61. Kf2 {[%emt 0:00:02]} Rb4 {[%emt 0:00:03]} 62. Kf3 {[%emt 0:00:01]} Rf4+ {[%emt 0:00:01]} 63. Kg3 {[%emt 0:00:05]} Rb4 {[%emt 0:00:01]} 64. Re5 {[%emt 0:00:05]} Rb3+ {[%emt 0:00:04]} 65. Kf2 {[%emt 0:00:03]} Rb4 {[%emt 0:00:01]} 66. Kf3 {[%emt 0:00:21]} Rf4+ {[%emt 0:00:05]} 67. Kg3 {[%emt 0:00:51]} Rb4 {[%emt 0:00:02]} 68. Rd5 {[%emt 0:00:06]} Rb3+ {[%emt 0:00:05]} 69. Kf2 {[%emt 0:00:02]} Rb4 {[%emt 0:00:02]} 70. Kf3 {[%emt 0:00:21]} Rf4+ {[%emt 0:00:02]} 1/2-1/2